bitfinex/quotes_ETHUSD_20250730
["timestamp","ask_amount","ask_price","bid_price","bid_amount"]
[1753862052270,3.997,3816.8,3816.7,1.3821]
[1753862052434,3.997,3816.8,3816.7,0.7509]
[1753862052435,4.23951684,3816.8,3816.7,0.7509]
[1753862052631,3.11138326,3817.2,3816.6,0.10362722]
[1753862052835,0.5674,3816.8,3816.6,0.10362722]
[1753862053037,7.23959333,3816.7,3816.6,0.10362722]
[1753862053232,7.67579333,3816.7,3816.6,0.10362722]
[1753862053470,7.67579057,3816.7,3816.6,0.10362722]
[1753862053959,7.23959057,3816.7,3816.6,0.57642722]
[1753862054268,6.997,3816.7,3816.6,0.57642722]
[1753862054829,7.23961054,3816.7,3816.6,0.10362722]
[1753862055040,8.67487754,3816.7,3816.6,0.10362722]
[1753862055347,9.17117754,3816.7,3816.6,0.10362722]
[1753862056563,11.79124199,3816.7,3816.6,0.10362722]
[1753862057066,12.76051282,3816.7,3816.6,0.10362722]
[1753862057374,12.76051282,3816.7,3816.2,0.001]
[1753862057375,6.44403907,3816.3,3816.2,0.001]
[1753862057534,16.51086831,3816.3,3816.2,0.001]
[1753862057736,17.44336831,3816.3,3816.2,0.001]
[1753862059378,17.4253096,3816.3,3816.2,0.001]
[1753862060478,7.21834598,3816.3,3816.2,0.001]
[1753862060637,7.38518137,3816.3,3816.2,0.4738]
[1753862061365,10.05353907,3816.3,3816.2,0.001]
[1753862061737,7.4332,3816.3,3816.2,0.001]
[1753862062050,3.4362,3816.3,3816.2,0.001]
[1753862062245,7.4332,3816.3,3816.2,0.001]
[1753862062459,7.67555145,3816.3,3816.2,0.001]
[1753862062666,8.1718516,3816.3,3816.2,0.001]
[1753862062888,7.6755516,3816.3,3816.2,0.001]
[1753862065077,8.1718516,3816.3,3816.2,0.001]
[1753862065405,7.6755516,3816.3,3816.2,0.001]
[1753862066592,7.6755516,3816.3,3815.3,0.1584]
[1753862066593,0.8222,3816.0,3814.3,0.7848]
[1753862066802,2.62082436,3815.6,3814.3,0.7848]
[1753862066967,1.03217673,3815.5,3815.0,0.7848]
[1753862067167,3.2423516,3815.4,3815.2,0.4728]
[1753862067377,4.4462,3815.5,3815.2,0.4728]
[1753862067378,3.3735516,3815.3,3815.2,0.4728]
[1753862067588,3.0,3815.2,3815.0,0.7848]
[1753862067767,0.13083655,3815.2,3815.0,0.7848]
[1753862067972,4.01,3815.2,3815.0,0.7848]
[1753862068158,0.1312,3815.3,3815.1,0.5128]
[1753862068359,4.01,3815.2,3815.1,0.04]
[1753862068697,7.57946092,3815.2,3815.1,0.04]
[1753862069197,7.14326092,3815.2,3815.1,0.5128]
[1753862070452,3.13326092,3815.2,3815.1,0.5128]
[1753862070619,7.53022959,3815.2,3815.1,0.5128]
[1753862070769,7.38474134,3815.2,3815.1,0.5128]
[1753862071408,3.37574134,3815.2,3815.1,0.5128]
[1753862071560,7.008,3815.2,3815.1,0.5128]
[1753862071873,0.326276,3815.3,3815.2,2.62109456]
[1753862072080,4.44651757,3815.3,3815.2,0.1594]
[1753862072295,4.44647781,3815.3,3815.2,0.6452]
[1753862072492,4.204076,3815.3,3815.2,0.6452]
[1753862072664,0.195076,3815.3,3815.2,0.6452]
[1753862072866,4.009,3815.4,3815.2,0.6452]
[1753862073077,7.009,3815.4,3815.3,0.4858]
[1753862073312,7.25139405,3815.4,3815.3,0.4858]
[1753862073614,4.25139405,3815.4,3815.3,0.4858]
[1753862073987,0.44390891,3815.4,3815.3,0.4858]
[1753862074693,0.20151486,3815.4,3815.3,0.4858]
[1753862074887,4.008,3815.5,3815.3,0.4858]
[1753862075940,7.008,3815.5,3815.4,0.4858]
[1753862076497,7.007,3815.5,3815.4,0.4858]
[1753862077594,3.0,3815.5,3815.4,0.4858]
[1753862077928,7.20460311,3815.5,3815.4,0.4858]
[1753862078434,7.20460311,3815.5,3815.4,0.33006625]
[1753862079017,3.19760311,3815.5,3815.4,0.33006625]
[1753862079260,0.19760311,3815.5,3815.4,4.21054951]
[1753862079420,0.19760311,3815.5,3815.4,1.23036625]
[1753862079604,3.0,3815.8,3815.4,1.23036625]
[1753862079811,3.0,3815.8,3815.4,0.9003]
[1753862080327,3.0,3815.8,3815.5,0.4858]
[1753862080506,3.0,3815.8,3815.6,0.4858]
[1753862080709,3.0,3815.8,3815.4,0.9003]
[1753862080909,3.0,3815.8,3815.7,0.4858]
[1753862081310,3.19211031,3815.8,3815.7,0.4858]
[1753862081532,0.19211031,3815.8,3815.7,0.4858]
[1753862081723,3.1312,3815.9,3815.7,0.4858]
[1753862081919,0.4338,3815.8,3815.4,0.7691]
[1753862082124,0.1312,3815.6,3815.4,0.7691]
[1753862082596,0.4338,3815.5,3815.2,0.4858]
[1753862082795,0.1312,3815.6,3815.1,0.9712]
[1753862083031,0.4338,3815.4,3815.1,0.84]
[1753862083235,0.4552,3815.3,3815.1,0.04]
[1753862083409,0.5864,3815.3,3815.1,0.04]
[1753862083607,0.889,3815.2,3815.1,0.04]
[1753862084512,1.7016,3815.2,3815.1,0.04]
[1753862084835,7.56556302,3815.2,3815.1,0.04]
[1753862085347,7.69569945,3815.2,3815.1,0.04]
[1753862085856,7.69564992,3815.2,3815.1,0.04]
[1753862086158,9.18113456,3815.2,3815.1,0.04]
[1753862086361,6.56004,3815.2,3815.1,0.04]
[1753862086573,7.83135536,3815.2,3815.1,0.04]
[1753862087118,7.83235536,3815.2,3815.1,0.04]
[1753862088616,3.82235536,3815.2,3815.1,0.04]
[1753862088822,3.38855536,3815.2,3815.1,0.04]
[1753862089067,3.38855536,3815.2,3815.1,0.5258]
[1753862089250,7.39755536,3815.2,3815.1,0.5258]
[1753862089571,7.2518471,3815.2,3815.1,1.3559]
[1753862089721,3.2428471,3815.2,3815.1,1.3559]
[1753862089920,7.2518471,3815.2,3815.1,1.3559]
[1753862090326,7.6856471,3815.2,3815.1,0.04]
[1753862090743,0.2428471,3815.2,3815.1,6.25834653]
[1753862090953,0.19455155,3815.8,3815.2,3.43228852]
[1753862090954,0.1312,3815.6,3815.2,3.43228852]
[1753862091144,0.1312,3815.6,3815.3,0.4858]
[1753862091357,0.58451059,3816.2,3815.4,0.4858]
[1753862091358,0.1312,3815.8,3815.4,0.4858]
[1753862091558,0.1312,3815.8,3815.6,2.62076391]
[1753862091780,0.43524439,3815.8,3815.7,7.03893436]
[1753862092045,4.01,3816.4,3815.7,4.70878326]
[1753862092252,0.1312,3816.5,3816.0,3.24258326]
[1753862092448,0.3741293,3816.5,3816.1,0.4858]
[1753862092653,0.8079293,3816.5,3816.1,0.4858]
[1753862092888,0.2429293,3816.4,3816.1,0.4858]
[1753862093044,0.2429293,3816.4,3815.7,0.821]
[1753862093045,0.889,3816.3,3815.7,0.821]
[1753862093250,0.565,3816.2,3815.7,0.821]
[1753862093597,0.1312,3816.0,3815.7,3.44174544]
[1753862093902,0.1312,3816.0,3815.8,0.4858]
[1753862096069,0.1312,3816.0,3815.7,0.821]
[1753862096250,0.1312,3815.8,3815.4,3.40095717]
[1753862096455,0.1312,3815.8,3815.5,0.4858]
[1753862096850,0.1312,3815.8,3815.6,2.62075878]
[1753862097150,0.1312,3815.8,3815.4,3.40090933]
[1753862097347,0.1312,3815.8,3815.5,0.4858]
[1753862097588,0.4338,3815.7,3815.4,0.78]
[1753862097803,0.4338,3815.7,3815.1,2.66215857]
[1753862097804,0.4338,3815.6,3815.1,0.041]
[1753862097950,0.60054,3815.6,3815.1,0.041]
[1753862098168,0.1312,3815.3,3815.1,0.041]
[1753862098820,0.4338,3815.2,3815.1,0.041]
[1753862100643,0.1312,3815.3,3815.1,0.041]
[1753862100845,3.4712,3815.6,3815.2,0.4675]
[1753862101005,0.1312,3815.4,3815.2,0.4675]
[1753862101902,0.4712,3815.7,3815.3,0.4675]
[1753862102131,0.1312,3815.5,3815.4,0.4675]
[1753862102701,0.1312,3815.5,3815.1,0.5085]
[1753862102902,0.1312,3815.5,3815.2,0.4675]
[1753862103507,0.1312,3815.5,3815.3,0.4675]
[1753862104248,0.1312,3815.5,3815.1,0.041]
[1753862104416,0.4712,3815.4,3815.1,0.041]
[1753862104739,0.1312,3815.5,3815.2,0.4675]
[1753862105144,0.1312,3815.5,3815.1,2.66215024]
[1753862105349,0.1312,3815.5,3815.3,0.4675]
[1753862105779,0.1312,3815.5,3815.4,0.4675]
[1753862106840,0.37418382,3815.6,3815.4,0.4675]
[1753862107265,0.1312,3815.6,3815.3,0.7704]
[1753862107472,0.24305382,3815.6,3815.5,0.4675]
[1753862107775,0.1312,3815.8,3815.5,0.4675]
[1753862107954,0.4712,3815.7,3815.3,1.3691]
[1753862108132,0.24305382,3815.6,3815.3,0.9016]
[1753862108334,0.24305382,3815.6,3815.4,0.4675]
[1753862108758,0.71425382,3815.6,3815.3,1.3691]
[1753862108960,0.4712,3815.6,3815.3,1.3691]
[1753862109179,0.4712,3815.5,3815.3,0.1312]
[1753862109378,0.9376,3815.5,3815.1,0.041]
[1753862109531,0.4712,3815.4,3815.1,2.66215675]
[1753862109739,0.4712,3815.4,3815.1,3.12965675]
[1753862110058,0.1312,3815.6,3815.2,3.08858655]
[1753862110256,0.37428431,3815.6,3815.2,3.08858655]
[1753862110460,0.84548431,3815.6,3815.3,3.08852238]
[1753862110649,0.1312,3815.6,3815.4,0.4675]
[1753862110848,3.0,3816.1,3815.4,0.4675]
[1753862110849,0.24310265,3816.0,3815.4,0.4675]
[1753862111052,0.1312,3815.8,3815.4,3.08843602]
[1753862111254,0.1312,3815.8,3815.5,3.08837211]
[1753862111578,0.1312,3815.8,3815.6,0.4675]
[1753862112042,0.6024,3815.8,3815.3,7.23571461]
[1753862112243,0.24311328,3815.7,3815.4,0.4675]
[1753862112538,0.71431328,3815.7,3815.3,6.76821461]
[1753862112848,0.1312,3815.8,3815.3,4.1472]
[1753862113053,0.9376,3815.7,3815.2,4.015]
[1753862113267,1.0688,3815.6,3815.2,4.015]
[1753862113474,0.4712,3815.5,3815.2,4.015]
[1753862113689,0.4664,3815.5,3815.2,4.015]
[1753862113978,0.4712,3815.4,3815.2,4.015]
[1753862115070,0.4712,3815.4,3815.2,6.63607367]
[1753862115387,0.1312,3815.6,3815.3,0.4675]
[1753862115592,0.37450987,3815.6,3815.2,4.015]
[1753862115793,0.9376,3815.5,3815.2,4.015]
[1753862115999,0.4664,3815.5,3815.2,4.015]
[1753862116299,0.4712,3815.4,3815.2,4.015]
[1753862117295,0.1312,3815.6,3815.2,4.015]
[1753862117600,0.9376,3815.5,3815.2,4.015]
[1753862117781,1.0688,3815.4,3815.1,0.041]
[1753862118158,0.9376,3815.3,3815.1,0.041]
[1753862118355,0.1312,3815.2,3815.1,0.041]
[1753862118587,1.0688,3815.2,3815.1,0.041]
[1753862119506,0.1312,3815.2,3815.1,0.041]
[1753862119678,1.0688,3815.2,3815.1,0.041]
[1753862119877,1.31264499,3815.2,3815.1,0.041]
[1753862120074,1.53762549,3815.2,3815.1,0.041]
[1753862120279,1.53771773,3815.2,3815.1,0.041]
[1753862121801,1.07131773,3815.2,3815.1,0.041]
[1753862122699,1.53771773,3815.2,3815.1,0.041]
[1753862123008,1.53788473,3815.2,3815.1,0.041]
[1753862124303,1.07148473,3815.2,3815.1,0.041]
[1753862124605,1.53788473,3815.2,3815.1,0.041]
[1753862125309,1.07148473,3815.2,3815.1,0.041]
[1753862125501,0.84650423,3815.2,3815.1,0.041]
[1753862126605,0.37530423,3815.2,3815.1,0.041]
[1753862126903,0.84650423,3815.2,3815.1,0.041]
[1753862127290,0.37530423,3815.2,3815.1,0.041]
[1753862127693,0.37530423,3815.2,3815.1,0.5085]
[1753862129419,2.07870423,3815.2,3815.1,0.041]
[1753862129605,2.22554938,3815.2,3815.1,0.041]
[1753862129806,5.7334198,3815.2,3815.1,0.041]
[1753862130209,6.5213998,3815.2,3815.1,0.041]
[1753862130928,9.14249436,3815.2,3815.1,0.041]
[1753862133798,5.6211685,3815.1,3814.4,4.553]
[1753862133997,0.1312,3814.5,3814.4,4.553]
[1753862134192,0.76410347,3814.5,3814.4,4.553]
[1753862134398,1.0082077,3814.5,3814.4,4.553]
[1753862134598,1.7962287,3814.5,3814.4,4.553]
[1753862135844,0.5764077,3814.5,3814.4,5.0468]
[1753862136405,0.33230347,3814.5,3814.4,5.0468]
[1753862137452,0.20110347,3814.5,3814.4,5.0468]
[1753862137743,0.1312,3814.6,3814.4,5.0468]
[1753862137942,0.37530493,3814.6,3814.4,4.553]
[1753862138101,0.37530493,3814.6,3814.5,0.4938]
[1753862139047,0.37530493,3814.6,3814.4,4.554]
[1753862139252,0.80710493,3814.6,3814.4,4.554]
[1753862139437,0.563,3814.6,3814.4,4.554]
[1753862139615,0.563,3814.6,3814.4,5.0478]
[1753862142763,0.563,3814.6,3814.4,4.554]
[1753862142764,0.1312,3814.6,3814.4,4.554]
[1753862142975,1.1966,3814.5,3814.4,0.543]
[1753862143254,1.70774381,3814.5,3814.4,0.543]
[1753862143553,2.13954381,3814.5,3814.4,0.543]
[1753862145168,1.00885974,3814.5,3814.4,0.543]
[1753862145368,0.24405974,3814.5,3814.4,0.543]
[1753862145529,0.67585974,3814.5,3814.4,0.543]
[1753862145715,1.33710137,3814.5,3814.4,0.543]
[1753862146219,0.87420137,3814.5,3814.4,0.543]
[1753862146419,4.94069111,3814.5,3814.4,0.543]
[1753862148455,5.87626764,3814.5,3814.4,0.543]
[1753862148754,8.4978432,3814.5,3814.4,0.543]
[1753862149060,12.5078432,3814.5,3814.4,0.543]
[1753862150149,9.88626764,3814.5,3814.4,0.543]
[1753862150509,5.87626764,3814.5,3814.4,0.543]
[1753862150731,4.98156764,3814.5,3814.4,0.543]
[1753862150926,9.88526764,3814.5,3814.4,0.543]
[1753862151566,9.42236764,3814.5,3814.4,0.543]
[1753862151773,4.98156764,3814.5,3814.4,0.543]
[1753862152067,8.9912718,3814.5,3814.4,0.543]
[1753862152272,3.58848206,3814.5,3814.4,0.543]
[1753862152573,7.59848206,3814.5,3814.4,1.0368]
[1753862152932,7.59848206,3814.5,3814.4,0.543]
[1753862153770,8.49318206,3814.5,3814.4,0.543]
[1753862153968,10.5043679,3814.5,3814.4,0.543]
[1753862155353,13.12594346,3814.5,3814.4,0.543]
[1753862155561,10.5043679,3814.5,3814.4,0.543]
[1753862155746,13.12594346,3814.5,3814.4,0.543]
[1753862155954,10.5043679,3814.5,3814.4,0.543]
[1753862156485,13.12594346,3814.5,3814.4,0.543]
[1753862156645,16.24587226,3814.5,3814.4,0.543]
[1753862158484,16.24596026,3814.5,3814.4,0.543]
[1753862159052,16.24596026,3814.5,3814.4,0.203625]
[1753862160368,3.0,3814.0,3813.3,0.4511]
[1753862160567,3.0,3813.8,3813.3,0.4511]
[1753862160768,0.1312,3813.4,3813.3,0.4511]
[1753862161374,0.2623586,3813.4,3813.3,0.4511]
[1753862161575,0.1312,3813.4,3813.3,0.4511]
[1753862162984,0.1312,3813.4,3813.3,0.44059447]
[1753862163274,0.1312,3813.4,3813.3,3.06299501]
[1753862163477,3.0,3813.6,3813.3,1.37499447]
[1753862163679,3.1312,3813.6,3813.3,0.9344]
[1753862164194,3.1312,3813.6,3813.3,3.55678086]
[1753862164494,3.26048588,3813.6,3813.3,3.55679182]
[1753862164887,3.26048588,3813.6,3813.3,0.9344]
[1753862165091,0.26048588,3813.6,3813.4,0.4511]
[1753862165387,3.0,3813.7,3813.4,3.07342716]
[1753862165692,0.788164,3813.8,3813.7,0.8247]
[1753862165948,0.24375804,3813.8,3813.7,1.2758]
[1753862166090,3.0,3814.1,3813.8,2.62199751]
[1753862166284,0.24376684,3814.0,3813.9,0.4511]
[1753862166600,0.24376684,3814.2,3813.9,0.4511]
[1753862167214,0.24376684,3814.2,3813.7,0.8247]
[1753862167388,0.24376684,3814.2,3814.0,0.4511]
[1753862167587,0.24376684,3814.2,3814.1,0.4511]
[1753862167827,0.50512289,3814.2,3814.1,0.4511]
[1753862168129,0.65139344,3814.2,3814.1,0.4511]
[1753862168891,0.65139344,3814.2,3813.7,0.9559]
[1753862169119,0.39005691,3814.1,3813.8,0.4511]
[1753862169318,0.37496684,3814.0,3813.8,0.4511]
[1753862169504,0.24376684,3813.9,3813.7,0.8247]
[1753862169705,0.1312,3814.0,3813.7,0.8247]
[1753862169706,0.24376684,3813.8,3813.7,0.8247]
[1753862169928,0.1312,3814.0,3813.7,0.8247]
[1753862170317,0.37496684,3814.0,3813.8,0.4511]
[1753862170493,0.24376684,3813.9,3813.8,0.4511]
[1753862171131,0.1312,3814.0,3813.8,0.4511]
[1753862171299,0.1312,3814.0,3813.7,0.8247]
[1753862171498,0.1312,3814.0,3813.9,0.4511]
[1753862171718,0.1312,3814.0,3813.7,1.2758]
[1753862171918,0.5883,3814.0,3813.7,0.8247]
[1753862172131,0.1312,3813.8,3813.2,0.8035]
[1753862172335,0.1312,3813.8,3813.3,0.4511]
[1753862172907,0.83224472,3813.8,3813.4,0.4511]
[1753862173142,0.5883,3813.8,3813.5,0.4511]
[1753862173347,0.70108071,3813.7,3813.4,0.4511]
[1753862173553,0.4571,3813.7,3813.4,0.4511]
[1753862173847,0.921,3813.6,3813.2,0.8035]
[1753862174005,0.1312,3813.5,3813.2,0.8035]
[1753862174202,0.1312,3813.5,3813.3,0.4511]
[1753862175612,0.1312,3813.5,3813.4,0.4511]
[1753862175867,0.37522455,3813.5,3813.4,0.4511]
[1753862176414,0.1312,3813.5,3813.4,0.4511]
[1753862176748,0.37522455,3813.5,3813.2,0.8035]
[1753862177046,0.37522455,3813.5,3813.3,0.4511]
[1753862177467,0.37522455,3813.5,3813.2,0.8035]
[1753862177635,0.37522455,3813.5,3813.4,0.4511]
[1753862178676,0.37522455,3813.5,3813.0,2.62258773]
[1753862178677,2.23007981,3813.5,3812.8,0.1312]
[1753862178965,2.23007981,3813.5,3810.9,0.777]
[1753862178966,0.7718,3813.0,3811.8,3.1199288]
[1753862179119,3.0,3812.8,3812.3,0.7745]
[1753862179324,1.16502455,3812.7,3811.9,1.2256]
[1753862179523,0.24402455,3812.6,3811.9,1.2256]
[1753862179719,1.16502455,3812.6,3811.9,1.2256]
[1753862179961,0.24402455,3812.5,3811.9,1.2256]
[1753862180166,0.70112455,3812.5,3811.9,1.2256]
[1753862180470,0.70112455,3812.5,3811.9,0.7745]
[1753862180471,5.78007346,3812.5,3811.9,0.7745]
[1753862180700,5.78007346,3812.5,3811.1,1.04]
[1753862180701,3.1199288,3812.1,3811.1,1.04]
[1753862180831,3.0,3811.9,3811.1,1.04]
[1753862181127,3.0,3811.7,3811.1,1.04]
[1753862182133,0.1972403,3811.7,3811.2,0.7644]
[1753862182340,0.4571,3811.7,3811.2,1.2155]
[1753862182557,0.4571,3811.7,3811.3,0.4511]
[1753862183168,0.4571,3812.1,3811.4,0.4511]
[1753862183468,3.0,3811.9,3811.2,0.7644]
[1753862183759,0.69989237,3811.8,3811.2,0.7644]
[1753862183922,0.4571,3811.8,3811.2,0.7644]
[1753862184858,0.921,3811.8,3811.2,0.7644]
[1753862185058,0.921,3811.8,3811.3,0.4511]
[1753862185059,0.4571,3811.8,3811.3,0.4511]
[1753862185268,0.4571,3811.8,3811.2,0.7644]
[1753862185269,3.0,3811.7,3811.2,0.7644]
[1753862185442,3.0,3811.7,3811.4,0.4511]
[1753862185759,0.788614,3811.6,3811.5,0.4511]
[1753862187875,0.788614,3811.6,3811.5,3.07473898]
[1753862188064,0.19757537,3811.9,3811.7,2.62345422]
[1753862188271,0.788545,3811.8,3811.6,2.62356016]
[1753862188426,4.074,3812.3,3811.7,0.4511]
[1753862188632,3.0,3812.2,3811.7,0.4511]
[1753862188830,3.0,3811.5,3810.3,0.02]
[1753862189029,3.0,3811.6,3811.1,1.4911]
[1753862189262,3.0,3811.6,3811.1,1.04]
[1753862189263,0.921,3811.5,3811.1,1.04]
[1753862189460,0.921,3811.4,3811.1,1.04]
[1753862189965,0.4571,3811.7,3811.1,1.8291]
[1753862190155,0.4639,3811.6,3811.1,1.8291]
[1753862190465,0.937,3811.5,3811.1,1.04]
[1753862190662,0.4432,3811.5,3811.1,1.5142]
[1753862190825,0.4432,3811.5,3811.1,1.04]
[1753862191026,0.4432,3811.4,3811.1,0.04]
[1753862191429,0.4432,3811.4,3810.6,3.1199288]
[1753862191430,0.7527,3810.8,3809.5,0.004]
[1753862191639,0.7527,3810.8,3809.7,0.4742]
[1753862191640,3.0,3810.7,3809.7,0.4742]
[1753862191866,2.62428046,3810.6,3809.5,0.004]
[1753862192028,3.56128046,3810.6,3809.5,0.004]
[1753862192232,0.937,3810.5,3809.5,0.004]
[1753862192433,0.65612805,3810.4,3809.5,0.004]
[1753862192668,8.69912805,3810.4,3809.5,0.004]
[1753862193240,9.45802805,3810.4,3809.5,0.004]
[1753862193458,9.45802805,3810.4,3809.6,0.4742]
[1753862194137,3.0,3810.4,3810.2,2.62452631]
[1753862194357,3.0,3810.4,3810.0,3.09880497]
[1753862194560,3.0,3810.4,3810.0,0.4742]
[1753862195352,3.0,3810.4,3810.0,3.09883758]
[1753862195648,3.0,3810.4,3809.9,0.7852]
[1753862195847,3.0,3810.4,3810.0,0.4742]
[1753862196053,3.0,3810.4,3810.0,3.09886586]
[1753862196453,3.0,3810.4,3810.3,3.11866526]
[1753862196850,4.2536,3810.4,3810.3,0.02]
[1753862197068,4.7474,3810.4,3810.3,0.02]
[1753862197279,5.22214,3810.4,3810.3,0.02]
[1753862197802,3.0,3810.4,3810.3,0.02]
[1753862198493,3.4432,3810.4,3810.3,0.02]
[1753862198690,3.937,3810.4,3810.3,0.02]
[1753862199188,4.9009,3810.4,3810.3,0.02]
[1753862200078,5.14271644,3810.4,3810.3,0.02]
[1753862200256,6.06878808,3810.4,3810.3,0.02]
[1753862201084,9.24318446,3810.4,3810.3,0.02]
[1753862201247,9.21720746,3810.4,3810.3,0.02]
[1753862202179,8.66720746,3810.4,3810.3,0.02]
[1753862202397,9.21720746,3810.4,3810.3,0.02]
[1753862203200,9.36232189,3810.4,3810.3,0.02]
[1753862203502,9.36231289,3810.4,3810.3,0.02]
[1753862203799,9.21720746,3810.4,3810.3,0.02]
[1753862204296,6.59281108,3810.4,3810.3,0.02]
[1753862204442,9.3623571,3810.4,3810.3,0.02]
[1753862204648,9.3623571,3810.4,3810.3,0.021]
[1753862204851,9.84016072,3810.4,3810.3,0.021]
[1753862205048,12.9583571,3810.4,3810.3,0.021]
[1753862205249,13.5083571,3810.4,3810.3,0.021]
[1753862205788,10.33396072,3810.4,3810.3,0.021]
[1753862206492,10.33196072,3810.4,3810.3,0.021]
[1753862206889,7.52996608,3810.4,3810.3,0.021]
[1753862207277,3.38696608,3810.4,3810.3,0.4952]
[1753862207601,3.24181644,3810.4,3810.3,0.4952]
[1753862208388,3.24181644,3810.4,3810.3,0.021]
[1753862208602,8.32681644,3810.4,3810.3,0.021]
[1753862208767,7.38981644,3810.4,3810.3,0.021]
[1753862209310,7.53541193,3810.4,3810.3,0.021]
[1753862209617,3.38741193,3810.4,3810.3,0.4952]
[1753862210266,3.38755253,3810.4,3810.3,0.4952]
[1753862211106,3.37301644,3810.4,3810.3,0.4952]
[1753862211812,3.24181644,3810.4,3810.3,0.7972]
[1753862211991,0.24181644,3810.4,3810.3,4.36026526]
[1753862212306,0.002,3810.7,3810.6,2.62425864]
[1753862212509,0.24506678,3810.7,3810.4,1.2359]
[1753862212711,0.24306678,3810.6,3810.4,0.7617]
[1753862212893,0.002,3810.7,3810.5,0.4742]
[1753862213097,0.24310605,3810.6,3810.5,0.4742]
[1753862214180,0.24310605,3810.6,3810.5,3.40052751]
[1753862214384,0.24310605,3810.6,3810.5,3.53172751]
[1753862214571,0.002,3810.7,3810.6,2.62425864]
[1753862214774,0.002,3810.7,3810.6,0.7762]
[1753862214775,0.2451311,3810.7,3810.6,0.7762]
[1753862215089,0.2451311,3810.7,3810.6,3.40045864]
[1753862215416,0.2451311,3810.7,3810.6,0.7762]
[1753862216275,0.2451311,3810.7,3810.6,3.40045864]
[1753862216523,0.2451311,3810.7,3810.6,4.22385864]
[1753862216814,0.002,3810.7,3810.6,4.77385864]
[1753862217018,1e-08,3810.7,3810.6,4.77385864]
[1753862218617,1e-08,3810.7,3810.6,4.80010122]
[1753862219113,1e-08,3810.7,3810.6,4.77385864]
[1753862220304,1e-08,3810.7,3810.6,4.80010122]
[1753862220527,1.3127,3812.8,3810.6,4.80010122]
[1753862220528,0.04,3812.9,3812.2,2.62315723]
[1753862220675,0.24330086,3812.3,3812.2,6.76715723]
[1753862220880,0.24330086,3812.3,3812.2,7.22935723]
[1753862221831,0.04,3812.9,3812.4,0.8216]
[1753862222038,0.24316766,3812.8,3812.4,0.8216]
[1753862222280,0.24316766,3812.7,3812.4,3.44461622]
[1753862222552,0.04,3812.9,3812.5,4.6042]
[1753862222895,0.28293604,3812.9,3812.6,4.145]
[1753862223101,0.24293604,3812.8,3812.5,0.4622]
[1753862223298,0.04,3812.9,3812.6,4.144]
[1753862223733,0.04,3812.9,3812.6,6.76687586]
[1753862223946,0.04,3812.9,3812.7,0.4622]
[1753862224111,0.04,3812.9,3812.7,3.08499559]
[1753862224312,0.04,3812.9,3812.8,0.4622]
[1753862224736,0.04,3812.9,3812.8,3.08494443]
[1753862225643,0.04,3812.9,3812.8,0.4622]
[1753862225848,0.24001522,3812.9,3812.8,0.4622]
[1753862226018,0.24001522,3812.9,3812.8,3.08494443]
[1753862226224,0.24001522,3812.9,3812.8,0.4622]
[1753862227342,0.24001522,3812.9,3812.6,6.76683132]
[1753862227847,0.24001522,3812.9,3812.6,4.6062]
[1753862228212,0.24001522,3812.9,3812.6,6.76687278]
[1753862228543,0.24001522,3812.9,3812.7,0.4622]
[1753862228732,0.24001522,3812.9,3812.7,3.08501038]
[1753862228929,0.24001522,3812.9,3812.8,0.4622]
[1753862229554,0.24001522,3812.9,3812.6,7.2290746]
[1753862229851,0.24001522,3812.9,3812.7,3.08499817]
[1753862230147,0.24001522,3812.9,3812.8,2.62274443]
[1753862230322,0.24001522,3812.9,3812.8,3.08494443]
[1753862230526,0.24001522,3812.9,3812.8,0.5934]
[1753862230933,0.24001522,3812.9,3812.8,3.24237187]
[1753862232145,0.24001522,3812.9,3812.8,4.00474443]
[1753862232544,0.04,3812.9,3812.8,4.00474443]
[1753862232863,0.04,3812.9,3812.8,9.01097187]
[1753862233027,0.04,3812.9,3812.8,8.98474443]
[1753862233828,0.04,3812.9,3812.8,1.382]
[1753862234071,0.04,3812.9,3812.8,5.6472]
[1753862234612,0.04,3812.9,3812.8,1.5202]
[1753862234813,0.04,3812.9,3812.8,0.9198]
[1753862235121,0.04,3812.9,3812.8,5.0458]
[1753862235448,0.04,3812.9,3812.8,5.508]
[1753862236715,0.04,3812.9,3812.8,0.9198]
[1753862236908,0.04,3812.9,3812.8,4.2552]
[1753862236909,0.9563,3812.9,3812.8,4.2552]
[1753862238436,0.4934,3812.9,3812.8,4.2552]
[1753862239966,0.9563,3812.9,3812.8,4.2552]
[1753862240280,0.9563,3812.9,3812.8,4.2492]
[1753862240575,0.9563,3812.9,3811.9,0.852]
[1753862240576,0.9563,3812.9,3811.9,0.8203]
[1753862240737,0.9163,3812.8,3812.4,0.1312]
[1753862240937,0.9163,3812.8,3812.5,4.118]
[1753862241153,0.9163,3812.7,3812.5,4.118]
[1753862241351,0.9163,3812.6,3812.5,4.118]
[1753862243090,0.9163,3812.6,3812.5,4.119]
[1753862243880,1.4163,3812.6,3812.5,4.119]
[1753862244773,1.65957244,3812.6,3812.5,4.117]
[1753862248294,2.36610571,3812.6,3812.1,0.1312]
[1753862248511,2.36610571,3812.6,3812.4,4.11]
[1753862248512,0.24327244,3812.5,3812.4,4.11]
[1753862248680,1.15957244,3812.5,3812.4,4.11]
[1753862249395,1.30597129,3812.5,3812.4,4.11]
[1753862249598,0.84313173,3812.5,3812.4,4.109]
[1753862249745,1.43723173,3812.5,3812.4,4.109]
[1753862249945,1.9309549,3812.5,3812.3,4.108]
[1753862250209,1.15957244,3812.4,3812.3,4.108]